bitfinex-derivatives/quotes_ETHF0:USTF0_20260115
["timestamp","ask_amount","ask_price","bid_price","bid_amount"]
[1768448974991,0.91904092,3287.6,3286.4,3.31304571]
[1768448975193,0.00456225,3287.8,3286.4,3.31304571]
[1768448975393,0.91890213,3287.7,3286.4,3.31304571]
[1768448975585,0.91890213,3287.6,3286.4,3.31304571]
[1768448975895,0.00456225,3287.8,3286.4,3.31304571]
[1768448976094,0.91889797,3287.7,3286.4,3.31304571]
[1768448976300,0.00456225,3287.8,3286.4,3.31304571]
[1768448976501,0.91873142,3287.7,3286.4,3.31304571]
[1768448976688,0.00456225,3287.8,3286.4,3.31304571]
[1768448976884,0.91873069,3287.7,3286.4,3.31304571]
[1768448977080,0.00456225,3287.8,3286.4,3.31304571]
[1768448977285,0.00456225,3287.8,3286.7,4.54744579]
[1768448977793,0.00456225,3287.8,3286.7,3.31304571]
[1768448979300,0.00456225,3287.8,3286.8,1.258]
[1768448980891,0.00281404,3288.3,3286.9,3.31304571]
[1768448981197,0.91829027,3288.2,3286.9,3.31304571]
[1768448981394,0.00281404,3288.3,3286.9,3.31304571]
[1768448981992,0.00456225,3287.9,3287.3,0.00456225]
[1768448987585,3.53489502,3287.8,3285.4,3.31304571]
[1768448987793,3.53489502,3287.8,3286.3,1.23440008]
[1768448987987,0.00456225,3287.9,3286.4,3.31304571]
[1768448988199,0.00456225,3287.9,3286.5,1.257]
[1768448988402,0.00456225,3287.9,3286.5,4.57004571]
[1768448988602,0.00456225,3287.9,3286.9,0.00456225]
[1768448990695,0.00456225,3287.9,3286.9,3.40698094]
[1768448997308,0.00456225,3287.9,3287.3,1.23415738]
[1768448997503,0.00281404,3288.3,3287.4,1.258]
[1768448998505,0.00456225,3288.2,3287.4,1.258]
[1768449000219,1.60759552,3288.8,3287.4,1.258]
[1768449000410,5.048,3290.0,3288.2,1.23415738]
[1768449000411,3.61335985,3289.4,3288.2,1.23415738]
[1768449000715,2.15537414,3289.3,3287.9,2.49215738]
[1768449001010,0.92121676,3289.2,3288.1,3.40241869]
[1768449001214,0.00353551,3289.2,3288.6,1.23415738]
[1768449001510,3.61335985,3289.9,3288.3,0.00456225]
[1768449001814,1.23415738,3289.2,3288.3,0.00456225]
[1768449002008,0.91829901,3289.1,3288.3,0.00456225]
[1768449002315,0.91829901,3289.0,3288.3,0.00456225]
[1768449002513,0.00456225,3289.0,3288.3,0.00456225]
[1768449005319,2.161,3290.4,3288.3,0.00456225]
[1768449005320,3.61335985,3290.2,3288.6,1.23415738]
[1768449005517,2.15134305,3290.1,3288.6,1.23415738]
[1768449005707,0.91718567,3290.0,3288.6,1.23415738]
[1768449005907,0.91718567,3289.9,3288.6,1.23415738]
[1768449006112,0.91718567,3289.8,3288.6,1.23415738]
[1768449006308,1.23680556,3289.8,3288.4,1.23415738]
[1768449006919,0.00264818,3289.8,3288.6,1.23415738]
[1768449007817,1.23415738,3289.3,3288.3,0.00456225]
[1768449008609,1.23415738,3289.5,3288.3,0.00456225]
[1768449009112,3.61335985,3289.5,3288.3,0.00456225]
[1768449010014,1.23415738,3289.3,3288.3,0.00456225]
[1768449010717,0.00264818,3289.8,3288.1,0.00251944]
[1768449010718,1.23415738,3289.0,3288.1,0.00251944]
[1768449010914,1.23415738,3289.0,3287.8,1.258]
[1768449011807,0.00456225,3288.7,3288.1,0.00456225]
[1768449014420,0.00456225,3288.7,3288.1,0.00251944]
[1768449015416,1.23415738,3288.5,3287.8,0.0036998]
[1768449015623,0.00456225,3288.7,3287.8,0.0036998]
[1768449016222,3.61335985,3287.9,3285.9,4.78877607]
[1768449016523,4.52804304,3287.8,3286.6,0.00456225]
[1768449016723,0.91468319,3287.7,3286.6,0.00456225]
[1768449016924,0.91468319,3287.6,3286.6,0.00456225]
[1768449017219,4.84751723,3287.8,3286.6,0.00811452]
[1768449017422,3.61335985,3288.3,3287.0,1.23415738]
[1768449017727,0.91420364,3288.2,3286.9,1.23415738]
[1768449018025,1.23415738,3288.2,3286.7,1.23415738]
[1768449018416,1.23415738,3288.1,3286.7,1.23415738]
[1768449019921,1.23415738,3287.8,3286.6,0.00811452]
[1768449020622,4.84748562,3287.8,3286.6,0.00811452]
[1768449021625,1.23415738,3287.5,3286.6,0.00811452]
[1768449021819,4.84748562,3287.8,3286.6,0.00811452]
[1768449022727,3.32529179,3287.7,3286.6,0.00811452]
[1768449022928,1.23415738,3287.5,3286.6,0.00811452]
[1768449023322,3.32529179,3287.7,3286.6,0.00811452]
[1768449024529,4.55944917,3287.4,3286.6,0.00811452]
[1768449024830,4.56255858,3287.4,3286.6,0.00811452]
[1768449025623,1.23726679,3287.4,3286.6,0.00811452]
[1768449025823,1.23726679,3287.4,3286.2,1.257]
[1768449025824,3.32529179,3287.3,3286.2,1.257]
[1768449026832,3.32529179,3287.3,3286.4,0.00456225]
[1768449027736,1.23415738,3287.1,3286.4,0.00456225]
[1768449027936,1.23415738,3287.1,3285.6,1.257]
[1768449027937,3.32529179,3287.0,3285.6,1.257]
[1768449028230,3.32529179,3287.0,3285.7,1.23415738]
[1768449028830,0.00456225,3286.7,3286.0,0.00456225]
[1768449032936,0.00456225,3286.7,3286.1,1.23415738]
[1768449033136,5.96729179,3287.3,3286.1,1.23415738]
[1768449033734,5.96729179,3287.3,3286.0,0.00456225]
[1768449033735,7.20144917,3287.3,3286.0,0.00456225]
[1768449034236,0.00456225,3287.0,3286.0,0.00456225]
[1768449035534,0.00456225,3287.0,3286.2,1.23415738]
[1768449036239,0.00456225,3287.0,3286.0,1.23871963]
[1768449036639,0.00456225,3287.0,3286.0,0.00456225]
[1768449037138,1.23871963,3287.0,3286.0,0.00456225]
[1768449038038,0.00456225,3287.0,3286.0,0.00456225]
[1768449042737,0.00456225,3287.0,3286.0,1.23871963]
[1768449043640,0.00456225,3287.0,3286.4,1.23415738]
[1768449044737,0.00456225,3287.0,3286.2,1.23415738]
[1768449045043,0.00456225,3287.0,3286.0,1.23871963]
[1768449046244,0.00456225,3287.0,3286.2,1.23415738]
[1768449046846,0.00456225,3287.0,3286.1,1.23415738]
[1768449048047,0.00310941,3287.4,3286.1,1.23415738]
[1768449048245,0.91750519,3287.3,3286.2,1.23415738]
[1768449048445,0.91750519,3287.2,3286.2,1.23415738]
[1768449048653,0.00310941,3287.4,3286.2,1.23415738]
[1768449048654,0.91750519,3287.1,3286.2,1.23415738]
[1768449048854,0.91750519,3287.0,3286.2,1.23415738]
[1768449049045,0.00310941,3287.4,3286.2,1.23415738]
[1768449049352,0.00456225,3286.9,3286.0,4.62087986]
[1768449052855,0.00456225,3286.9,3286.3,1.23415738]
[1768449053548,1.60815039,3287.4,3286.3,1.23415738]
[1768449054559,0.00456225,3287.2,3286.0,3.38672248]
[1768449054748,0.91872334,3287.1,3286.3,1.23415738]
[1768449054949,0.91872334,3287.0,3286.3,1.23415738]
[1768449055149,0.91872334,3286.9,3286.3,1.23415738]
[1768449055351,0.00456225,3287.2,3286.3,1.23415738]
[1768449055656,0.91860926,3287.1,3286.3,1.23415738]
[1768449055851,0.91860926,3287.0,3286.3,1.23415738]
[1768449056048,0.91860926,3286.9,3286.2,1.23415738]
[1768449056249,0.00456225,3287.2,3286.2,1.23415738]
[1768449056453,0.91860649,3287.1,3286.2,1.23415738]
[1768449056657,0.91860649,3287.0,3286.2,1.23415738]
[1768449056859,0.91860649,3286.9,3286.2,1.23415738]
[1768449057062,0.00456225,3287.2,3286.2,1.23415738]
[1768449057358,0.91860021,3287.1,3286.0,3.38672248]
[1768449057560,0.91860021,3287.0,3286.0,3.38672248]
[1768449057756,0.91860021,3286.9,3286.0,3.38672248]
[1768449057961,0.00456225,3287.2,3286.0,3.38672248]
[1768449058164,0.91882273,3287.1,3286.0,3.38672248]
[1768449058351,0.91882273,3287.0,3286.0,3.38672248]
[1768449058548,0.91882273,3286.9,3286.0,3.38672248]
[1768449058753,0.91882273,3286.8,3286.0,3.38672248]
[1768449058953,0.00456225,3287.2,3286.0,3.38672248]
[1768449059156,0.91885032,3287.1,3286.0,3.38672248]
[1768449059357,0.91885032,3287.0,3286.0,3.38672248]
[1768449059657,0.91885032,3286.9,3286.0,3.38672248]
[1768449059864,0.91885032,3286.8,3286.0,3.38672248]
[1768449060058,0.00456225,3287.2,3286.0,3.38672248]
[1768449060265,0.91893588,3287.1,3286.0,3.38672248]
[1768449060457,0.91893588,3287.0,3286.0,3.38672248]
[1768449060757,0.91893588,3286.9,3286.0,3.38672248]
[1768449060957,0.91893588,3286.8,3286.0,3.38672248]
[1768449061158,0.00456225,3287.2,3286.0,3.38672248]
[1768449061358,0.91807979,3287.1,3286.0,3.38672248]
[1768449061560,0.91807979,3287.0,3286.0,3.38672248]
[1768449061762,0.91807979,3286.9,3286.0,3.38672248]
[1768449061970,0.91807979,3286.8,3286.0,3.38672248]
[1768449062271,0.00456225,3287.2,3286.0,3.38672248]
[1768449062454,0.91845039,3287.1,3286.0,3.38672248]
[1768449062764,0.91845039,3287.0,3286.0,3.38672248]
[1768449062965,0.91845039,3286.9,3286.0,3.38672248]
[1768449063160,0.91845039,3286.8,3286.0,3.38672248]
[1768449063360,0.00456225,3287.2,3286.0,3.38672248]
[1768449063561,0.91849837,3287.1,3286.0,3.38672248]
[1768449063863,0.91849837,3287.0,3286.0,3.38672248]
[1768449064065,0.91849837,3286.9,3286.0,3.38672248]
[1768449064264,0.91849837,3286.8,3286.0,3.38672248]
[1768449064466,0.00456225,3287.2,3286.0,3.38672248]
[1768449064669,0.91857011,3287.1,3286.0,3.38672248]
[1768449064869,0.91857011,3287.0,3286.0,3.38672248]
[1768449065067,0.91857011,3286.9,3286.0,3.38672248]
[1768449065258,0.91857011,3286.8,3286.0,3.38672248]
[1768449065460,0.00456225,3287.2,3286.0,3.38672248]
[1768449065669,0.91867226,3287.1,3286.0,3.38672248]
[1768449065866,0.91867226,3287.0,3286.1,1.256]
[1768449066170,0.91867226,3286.9,3286.1,1.256]
[1768449066366,0.91867226,3286.8,3286.1,1.256]
[1768449066566,0.00456225,3287.2,3286.1,1.256]
[1768449066770,0.91900399,3287.1,3286.1,1.256]
[1768449066969,0.91900399,3287.0,3286.1,1.256]
[1768449067167,0.91900399,3286.9,3286.1,1.256]
[1768449067362,0.91900399,3286.8,3286.1,1.256]
[1768449067566,0.00456225,3287.2,3286.1,1.256]
[1768449067767,0.9190152,3287.1,3286.1,1.256]
[1768449067968,0.9190152,3287.0,3286.1,1.256]
[1768449068170,0.9190152,3286.9,3286.1,1.256]
[1768449068470,0.00456225,3287.2,3286.1,1.256]
[1768449068776,0.91902746,3287.1,3286.1,1.256]
[1768449069073,0.91902746,3287.0,3286.1,1.256]
[1768449069273,0.91902746,3286.9,3286.1,1.256]
[1768449069571,0.00456225,3287.2,3286.1,1.256]
[1768449069769,4.28860846,3287.1,3286.1,1.256]
[1768449069976,0.91904065,3287.0,3286.1,1.256]
[1768449070373,0.91904065,3286.9,3286.1,1.256]
[1768449070575,0.91904065,3286.8,3286.1,1.256]
[1768449070778,0.00456225,3287.2,3286.1,1.256]
[1768449070977,0.91904987,3287.1,3286.1,1.256]
[1768449071277,0.91904987,3287.0,3286.1,1.256]
[1768449071476,0.91904987,3286.9,3286.1,1.256]
[1768449071778,0.91904987,3286.8,3286.1,1.256]
[1768449071977,0.00456225,3287.2,3286.1,1.256]
[1768449072173,0.91912188,3287.1,3286.1,1.256]
[1768449072373,0.91912188,3287.0,3286.1,1.256]
[1768449072573,0.91912188,3286.9,3286.1,1.256]
[1768449072778,0.91912188,3286.8,3286.1,1.256]
[1768449073072,0.00456225,3287.2,3286.1,1.256]
[1768449073275,0.91920952,3287.1,3286.1,1.256]
[1768449073471,0.91920952,3287.0,3286.1,1.256]
[1768449073676,0.00456225,3287.2,3286.1,1.256]
[1768449073677,0.91920952,3286.9,3286.1,1.256]
[1768449073877,0.91920952,3286.8,3286.1,1.256]
[1768449074078,0.00456225,3287.2,3286.1,1.256]
[1768449074376,0.91919728,3287.1,3286.1,1.256]
[1768449074577,0.91919728,3287.0,3286.1,1.256]
[1768449074779,0.91919728,3286.9,3286.1,1.256]
[1768449074979,0.91919728,3286.8,3286.1,1.256]
[1768449075175,0.00456225,3287.2,3286.1,1.256]
[1768449075375,0.91918959,3287.1,3286.1,1.256]
[1768449075575,0.91918959,3287.0,3286.1,1.256]
[1768449075776,0.91918959,3286.9,3286.1,1.256]
[1768449075980,0.91918959,3286.8,3286.1,1.256]
[1768449076178,0.00456225,3287.2,3286.1,1.256]
[1768449076379,0.91918443,3287.1,3286.1,1.256]
[1768449076576,0.91918443,3287.0,3286.1,1.256]
[1768449076777,0.91918443,3286.9,3286.1,1.256]
[1768449076984,0.00456225,3287.2,3286.1,1.256]
[1768449077185,0.91918103,3287.1,3286.1,1.256]
[1768449077387,0.91918103,3287.0,3286.1,1.256]
[1768449077686,0.91918103,3286.9,3286.1,1.256]
[1768449077886,0.91918103,3286.8,3286.1,1.256]
[1768449078088,0.00456225,3287.2,3286.1,1.256]
[1768449078285,0.91918061,3287.1,3286.1,1.256]
[1768449078584,0.91918061,3287.0,3286.1,1.256]
[1768449078784,0.91918061,3286.9,3286.1,1.256]
[1768449078986,0.91918061,3286.8,3286.1,1.256]
[1768449079185,0.00456225,3287.2,3286.1,1.256]
[1768449079385,0.91920745,3287.1,3286.1,1.256]
[1768449079581,0.91920745,3287.0,3286.1,1.256]
[1768449079781,0.91920745,3286.9,3286.1,1.256]
[1768449079981,0.91920745,3286.8,3286.1,1.256]
[1768449080182,0.00456225,3287.2,3286.1,1.256]
[1768449080381,0.91925786,3287.1,3286.1,1.256]
[1768449080682,0.91925786,3287.0,3286.1,1.256]
[1768449080982,0.91925786,3286.9,3286.1,1.256]
[1768449081183,0.91925786,3286.8,3286.1,1.256]
[1768449081377,0.00456225,3287.2,3286.1,1.256]
[1768449081584,0.9192964,3287.1,3286.1,1.256]
[1768449081882,0.9192964,3287.0,3286.1,1.256]
[1768449082083,0.9192964,3286.9,3286.1,1.256]
[1768449082283,0.9192964,3286.8,3286.1,1.256]
[1768449082493,0.00456225,3287.2,3286.1,1.256]
[1768449082694,0.91954896,3287.1,3286.1,1.256]
[1768449082893,0.91954896,3287.0,3286.1,1.256]
[1768449083093,0.91954896,3286.9,3286.1,1.256]
[1768449083286,0.91954896,3286.8,3286.1,1.256]
[1768449083486,0.00456225,3287.2,3286.1,1.256]
[1768449083688,0.91955513,3287.1,3286.1,1.256]
[1768449083997,0.91955513,3287.0,3286.1,1.256]
[1768449084199,0.91955513,3286.9,3286.1,1.256]
[1768449084400,0.91955513,3286.8,3286.1,1.256]
[1768449084593,0.00456225,3287.2,3286.1,1.256]
[1768449084899,0.91959927,3287.1,3286.1,1.256]
[1768449085203,0.91959927,3287.0,3286.1,1.256]
[1768449085395,0.91959927,3286.9,3286.1,1.256]
[1768449085589,0.91959927,3286.8,3286.1,1.256]
[1768449085786,0.00456225,3287.2,3286.1,1.256]
[1768449086003,0.91960844,3287.1,3286.1,1.256]
[1768449086203,0.91960844,3287.0,3286.1,1.256]
[1768449086496,0.91960844,3286.9,3286.1,1.256]
[1768449086800,0.91960844,3286.8,3286.1,1.256]
[1768449086997,0.00456225,3287.2,3286.1,1.256]
[1768449087198,0.91965757,3287.1,3286.1,1.256]
[1768449087398,0.91965757,3287.0,3286.1,1.256]
[1768449087598,0.91965757,3286.9,3286.1,1.256]
[1768449087896,0.91965757,3286.8,3286.1,1.256]
[1768449088203,0.91987787,3286.7,3286.0,0.00456225]
[1768449088388,0.91987816,3286.6,3286.0,0.00456225]
[1768449088588,0.91982875,3286.5,3285.7,0.00266903]
[1768449088795,0.00456225,3287.2,3285.7,0.00266903]
[1768449088796,0.91976001,3286.4,3285.7,0.00266903]
[1768449088995,5.2052872,3287.0,3285.7,0.00266903]
[1768449089199,0.91976031,3286.9,3285.7,0.00266903]
[1768449089398,0.91976031,3286.8,3285.7,0.00266903]
[1768449089603,0.91976031,3286.7,3285.7,0.00266903]
[1768449089799,0.91976031,3286.6,3285.9,0.00456225]
[1768449090001,0.91976031,3286.5,3285.9,0.00456225]
[1768449090201,3.60024622,3287.0,3285.9,0.00456225]
[1768449090403,0.91882575,3286.9,3285.9,0.00456225]
[1768449090600,0.91882575,3286.8,3285.9,0.00456225]
[1768449090901,0.91882575,3286.7,3285.9,0.00456225]
[1768449091199,0.91882575,3286.6,3285.9,0.00456225]
[1768449091403,0.91882575,3286.5,3285.9,0.00456225]
[1768449091700,3.60024622,3287.0,3285.9,0.00456225]
[1768449091904,4.51809294,3286.9,3285.9,0.00456225]
[1768449092204,0.91784672,3286.8,3285.9,0.00456225]
[1768449092406,0.91768242,3286.7,3285.9,0.00456225]
[1768449092602,0.91768242,3286.6,3285.9,0.00456225]
[1768449092805,0.91768242,3286.5,3285.7,0.00266903]
[1768449093006,3.60024622,3286.9,3285.7,0.00266903]
[1768449093300,0.91753719,3286.8,3285.7,0.00266903]
[1768449093605,0.91753719,3286.7,3285.7,0.00266903]
[1768449093807,0.91753719,3286.6,3285.9,0.00456225]
[1768449094006,3.60024622,3286.9,3285.9,0.00456225]
[1768449094304,0.91753202,3286.8,3285.9,0.00456225]
[1768449094505,0.91753202,3286.7,3285.9,0.00456225]
[1768449094701,0.91753202,3286.6,3285.9,0.00456225]
[1768449095001,3.60024622,3286.9,3285.9,0.00456225]
[1768449095197,0.91745572,3286.8,3285.9,0.00456225]
[1768449095506,0.91745572,3286.7,3285.9,0.00456225]
[1768449095806,0.91745572,3286.6,3285.9,0.00456225]
[1768449096001,3.60024622,3286.9,3285.9,0.00456225]
[1768449096202,0.91738209,3286.8,3285.9,0.00456225]
[1768449096502,0.91738209,3286.7,3285.9,0.00456225]
[1768449096809,0.91738209,3286.7,3282.1,10.84683326]
[1768449096810,0.15219,3286.3,3282.1,10.84683326]
[1768449097004,0.15219,3286.3,3281.8,3.47491834]
[1768449097005,1.23512223,3283.3,3281.8,3.47491834]
[1768449097198,1.23512223,3283.6,3281.8,3.47491834]
[1768449097397,0.9111391,3283.5,3281.8,3.47491834]
[1768449097592,0.9111391,3283.4,3281.8,3.47491834]
[1768449097793,0.00456962,3283.0,3282.3,0.00456962]
[1768449098693,0.00283903,3283.5,3282.3,3.47948796]
[1768449099808,0.00456962,3283.2,3282.3,3.47948796]
[1768449104104,0.00456962,3283.2,3282.3,0.00456962]
[1768449104305,0.00456962,3283.2,3281.8,0.00391003]
[1768449104806,0.00456962,3283.2,3281.8,4.7139506]
[1768449105007,0.00456962,3283.2,3281.9,3.47491834]
[1768449105503,0.00456962,3283.2,3282.3,3.47491834]
[1768449113511,0.00283903,3283.5,3282.3,3.47491834]
[1768449114505,0.00456962,3283.2,3282.3,3.47491834]
[1768449118119,0.15229,3284.2,3282.7,3.60967067]
[1768449118315,0.9650883,3284.1,3282.7,3.60967067]
[1768449118516,40.8,3284.7,3282.7,3.60967067]
[1768449118824,0.96509587,3284.6,3282.7,3.60967067]
[1768449119024,0.00456962,3284.0,3282.7,3.60967067]
[1768449119326,0.00456962,3284.0,3282.9,3.60967067]
[1768449120217,2.20387449,3283.9,3282.9,3.60967067]
[1768449120417,1.23750264,3283.9,3282.9,3.60967067]
[1768449120617,0.00456962,3284.0,3282.9,3.60967067]
[1768449120821,0.96636677,3283.9,3282.9,3.60967067]
[1768449121021,1.23750264,3283.9,3282.9,3.60967067]
[1768449121226,0.98327535,3283.8,3282.9,3.60967067]
[1768449121531,0.98327535,3283.7,3282.9,3.60967067]
[1768449121824,1.23750264,3283.9,3282.9,3.60967067]
[1768449122018,0.98415785,3283.8,3282.9,3.60967067]
[1768449122217,0.98415785,3283.7,3282.9,3.60967067]
[1768449122421,0.98415785,3283.6,3282.9,3.60967067]
[1768449122622,1.24207226,3284.0,3282.9,3.60967067]
[1768449122823,0.98524758,3283.9,3282.9,3.60967067]
[1768449123024,1.24207226,3284.0,3282.9,3.60967067]
[1768449123025,0.98524758,3283.8,3282.9,3.60967067]
[1768449123229,0.98524758,3283.7,3282.9,3.60967067]
[1768449123426,0.98524758,3283.6,3282.9,3.60967067]
[1768449123633,0.98524758,3283.5,3282.9,3.60967067]
[1768449123924,1.24207226,3284.0,3282.9,3.60967067]
[1768449124226,3.82684534,3284.0,3282.9,3.60967067]
[1768449124522,2.58477308,3283.9,3282.9,3.60967067]
[1768449124718,0.98661433,3283.8,3282.9,3.60967067]
[1768449124919,0.98661433,3283.7,3282.9,3.60967067]
[1768449125118,0.98661433,3283.6,3282.9,3.60967067]
[1768449125320,0.98661433,3283.5,3282.9,3.60967067]
[1768449125519,1.59815875,3283.8,3282.9,3.60967067]
[1768449125520,0.98661433,3283.4,3282.9,3.60967067]
[1768449125719,1.59815875,3283.8,3282.9,3.60967067]
[1768449125720,0.98661433,3283.3,3282.9,3.60967067]
[1768449125921,1.59815875,3283.9,3283.2,3.60967067]
[1768449126124,1.59815875,3283.7,3283.1,1.23750264]
[1768449126330,1.59815875,3283.9,3283.1,1.23750264]
[1768449126625,0.00456962,3284.0,3283.1,1.23750264]
[1768449128325,0.00456962,3284.0,3283.2,3.60967067]
[1768449129225,1.59815875,3284.3,3283.4,1.23750264]
[1768449129422,1.59815875,3284.5,3283.5,3.60967067]
[1768449129730,1.23750264,3284.3,3283.0,3.60967067]
[1768449130030,1.23750264,3284.0,3283.0,3.60967067]
[1768449130224,1.23750264,3284.0,3283.1,1.256]
[1768449131628,0.00456469,3283.9,3283.1,1.256]
[1768449131830,1.23750264,3283.7,3282.3,3.60967067]
[1768449132035,1.23750264,3283.7,3282.5,3.60967067]
[1768449134034,1.24206733,3283.9,3282.5,3.60967067]
[1768449134334,1.24206733,3283.9,3282.6,3.60967067]
[1768449135029,1.24206733,3283.9,3282.5,1.23750264]
[1768449135230,1.24206733,3283.9,3282.2,0.00456962]
[1768449135231,1.23750264,3283.4,3282.2,0.00456962]
[1768449135431,1.23750264,3283.4,3282.2,3.61424029]
[1768449135731,1.23750264,3283.1,3282.2,0.00456962]
[1768449135928,1.23750264,3283.0,3282.2,0.00456962]
[1768449137933,0.94338582,3282.9,3282.2,3.61424029]
[1768449138134,0.94338582,3282.8,3282.2,3.61424029]
[1768449138330,1.23750264,3283.3,3282.2,3.61424029]
[1768449143141,1.59815875,3283.5,3282.2,3.61424029]
[1768449143340,1.23750264,3283.4,3282.2,3.61424029]
[1768449145146,1.59815875,3283.3,3282.2,3.61424029]
[1768449146151,2.83566139,3283.4,3282.2,3.61424029]
[1768449149238,1.23750264,3283.4,3282.2,3.61424029]
[1768449150237,0.93782431,3283.3,3282.2,3.61424029]
[1768449150435,0.93782431,3283.2,3282.2,3.61424029]
[1768449150652,2.17532695,3283.1,3282.2,0.00456962]
[1768449150838,0.93782431,3283.0,3282.2,0.00456962]
[1768449153248,1.59815875,3283.6,3282.4,4.52622155]
[1768449153451,0.92775404,3283.5,3282.5,3.28871891]
[1768449153664,0.00456469,3283.9,3282.5,3.28871891]
[1768449153848,0.92832821,3283.8,3282.5,3.28871891]
[1768449154054,0.92832821,3283.7,3282.5,3.28871891]
[1768449154248,0.92832821,3283.6,3282.5,3.28871891]
[1768449154439,0.92832821,3283.5,3282.6,1.256]
[1768449154644,1.23750264,3283.8,3282.6,1.256]
[1768449154845,0.92854277,3283.7,3282.6,1.256]
[1768449155050,0.92854277,3283.6,3282.6,1.256]
[1768449155254,1.23750264,3283.8,3282.6,1.256]
[1768449155453,0.92859645,3283.7,3282.6,1.256]
[1768449155653,0.92859645,3283.6,3282.6,1.256]
[1768449155858,1.23750264,3283.8,3282.6,1.256]
[1768449156058,1.46732681,3284.4,3282.7,3.28871891]
[1768449156247,0.15219,3286.4,3284.3,1.23750264]
[1768449156443,1.23750264,3286.5,3285.1,1.23750264]
[1768449156642,1.23750264,3286.6,3285.1,1.23750264]
[1768449156957,1.23750264,3286.7,3285.1,1.23750264]
[1768449157149,3.50138217,3285.9,3285.2,0.00456962]
[1768449157352,0.00361729,3285.9,3285.2,0.00456962]
[1768449167553,0.15216,3287.0,3285.2,0.00456962]
[1768449167554,3.49776488,3286.7,3285.2,0.00456962]
[1768449167856,3.49776488,3287.1,3285.2,3.29328853]
[1768449168654,3.50079082,3287.1,3285.2,3.29328853]
[1768449170156,0.00302594,3287.1,3285.2,3.29328853]
[1768449171461,0.00302594,3287.1,3285.2,3.44552853]
[1768449174964,3.42850035,3287.1,3285.2,3.44552853]
[1768449178062,3.42850035,3287.1,3285.3,1.254]
[1768449178264,3.42850035,3287.1,3285.4,3.54919947]
[1768449180356,3.42850035,3287.1,3285.3,1.254]
[1768449181165,3.42850035,3287.1,3285.2,0.00456962]
[1768449181364,3.42850035,3287.1,3285.4,1.254]
[1768449182868,3.42547441,3286.9,3285.4,1.254]
[1768449184267,0.88107348,3286.8,3285.4,1.254]
[1768449184473,3.42547441,3286.9,3285.4,1.254]
[1768449184666,0.88107345,3286.8,3285.4,1.254]
[1768449184859,3.42547441,3286.9,3285.4,1.254]
[1768449185061,0.88106892,3286.8,3285.4,1.254]
[1768449185260,0.8829695,3286.7,3285.4,1.254]
[1768449185457,0.8829695,3286.6,3285.4,1.254]
[1768449185672,3.42547441,3286.9,3285.4,1.254]
[1768449185874,0.88297044,3286.8,3285.5,3.54919947]
[1768449186173,3.42850035,3287.1,3285.5,3.54919947]
[1768449186477,0.88308798,3287.0,3285.5,3.54919947]
[1768449186770,0.88308798,3286.9,3285.5,3.54919947]
[1768449187072,3.42850035,3287.1,3285.5,3.54919947]
[1768449187368,0.88331186,3287.0,3285.5,3.54919947]
[1768449187570,0.88331186,3286.9,3285.5,3.54919947]
[1768449187772,3.42850035,3287.1,3285.5,3.54919947]
[1768449187973,0.88334188,3287.0,3285.5,3.54919947]
[1768449188276,0.88334188,3286.9,3285.5,3.54919947]
[1768449188574,3.42850035,3287.1,3285.5,3.54919947]
[1768449188779,0.88339926,3287.0,3285.5,3.54919947]
[1768449188966,0.88339926,3286.9,3285.5,3.54919947]
[1768449189166,3.42850035,3287.1,3285.5,3.54919947]
[1768449189370,3.42850035,3287.1,3285.6,1.254]
[1768449189371,3.42547441,3286.9,3285.6,1.254]
[1768449190474,0.88355996,3286.8,3285.6,1.254]
[1768449190662,3.42547441,3286.9,3285.6,1.254]
[1768449190866,3.42547441,3286.7,3285.6,1.254]
[1768449191187,3.42547441,3286.7,3285.5,1.254]
[1768449193074,0.00302594,3287.1,3285.5,1.254]
[1768449193273,0.88398819,3287.0,3285.5,1.254]
[1768449193470,0.88398819,3286.9,3285.5,1.254]
[1768449193667,0.88398819,3286.8,3285.5,1.254]
[1768449193979,0.88398819,3286.7,3285.5,1.254]
[1768449194274,0.88398819,3286.6,3285.5,1.254]
[1768449194470,3.42547441,3286.8,3285.5,1.254]
[1768449194671,0.88446004,3286.7,3285.5,1.254]
[1768449194876,0.88446004,3286.6,3285.5,1.254]
[1768449195076,3.42547441,3286.7,3285.5,1.254]
[1768449195278,0.88446103,3286.6,3285.5,1.254]
[1768449195576,4.31024666,3286.5,3285.5,1.254]
[1768449195764,0.88477225,3286.4,3285.5,1.254]
[1768449196075,0.88477225,3286.3,3285.5,1.254]
[1768449196274,3.42547441,3286.5,3285.5,1.254]
[1768449196577,0.88511121,3286.4,3285.5,1.254]
[1768449196774,0.88511121,3286.3,3285.5,1.254]
[1768449197077,3.42547441,3286.5,3285.5,1.254]
[1768449197276,0.88511145,3286.4,3285.5,1.254]
[1768449197478,0.88511145,3286.3,3285.5,1.254]
[1768449200377,0.88511145,3286.2,3285.5,1.254]
[1768449200580,0.88511145,3286.1,3285.5,1.254]
[1768449200779,3.54168424,3286.7,3285.5,1.254]
[1768449200982,0.88539698,3286.6,3285.5,1.254]
[1768449201183,0.88539698,3286.5,3285.5,1.254]
[1768449201380,0.88539698,3286.4,3285.5,1.254]
[1768449201583,0.88539698,3286.3,3285.5,1.254]
[1768449201780,0.88539698,3286.2,3285.5,1.254]
[1768449202082,5.138118,3286.7,3285.5,1.254]
[1768449202278,0.88531584,3286.6,3285.5,1.254]
[1768449202480,0.88531584,3286.5,3285.5,1.254]
[1768449202675,0.88531584,3286.4,3285.5,1.254]
[1768449202878,0.88531584,3286.3,3285.5,1.254]
[1768449203088,0.88531584,3286.2,3285.5,1.254]
[1768449203279,5.138118,3286.7,3285.5,1.254]
[1768449203575,0.88521652,3286.6,3285.5,1.254]
[1768449203886,0.88521652,3286.5,3285.5,1.254]
[1768449204183,2.642,3287.0,3285.7,1.23571006]
[1768449204381,2.642,3287.0,3285.7,4.66521486]
[1768449204781,2.642,3287.0,3285.8,3.4295048]
[1768449205084,0.00302594,3287.1,3285.8,3.4295048]
[1768449205280,4.23843376,3287.9,3286.1,4.81741486]
[1768449205476,2.642,3287.9,3286.1,4.81741486]
[1768449206387,2.64520584,3287.9,3286.1,4.81741486]
[1768449206583,3.34708991,3287.5,3285.6,3.4295048]
[1768449206782,3.34708991,3287.5,3285.7,4.297]
[1768449207881,3.34708991,3287.5,3285.6,4.66521486]
[1768449208081,3.34708991,3287.5,3285.7,1.253]
[1768449209489,3.34708991,3287.5,3285.7,4.6825048]
[1768449209987,3.34708991,3287.5,3285.8,3.4295048]